Cogmind - Beta 11 @@@ ROGUE MODE // 2022.03.22 @ 20:13:42 Player: Termy Result: Destroyed by P-80 Master with Gamma Rifle Performance ------------- Evolutions (6) 3000 Regions Visited (19) 3800 Robots Destroyed (78) 390 Value Destroyed (2940) 2940 Prototype IDs (54) 1080 Alien Tech Used (2) 400 Bonus (2379) 2379 TOTAL SCORE: 13989 Bonus ------- High Alert Combat Kills 19 Follower Combat Kills 260 Entered DSFs 500 Aligned with FarCom 300 Met Zhirov 300 Met Warlord at Base 500 MAIN.C Attacked Warlord 500 Cogmind --------- Core Integrity 0/1150 Matter 300/300 Energy 99/100 System Corruption 2% Temperature Cool (0) Movement Core (50) Location -3/Proximity Caves Parts ------- > --- POWER (2) -------- (None) > --- PROPULSION (6) --- (None) > --- UTILITY (7) ------ Advanced Transmission Jammer > --- WEAPON (4) ------- (None) > --- INVENTORY (5) ---- RU-N14's Throwing Claymores v3 (10) RU-N14's Throwing Claymores v3 (10) RU-N14's Throwing Claymores v3 (10) Phasing Sabre Vortex Lance (3) Peak State ------------ > --- POWER ------------ Light Antimatter Reactor > --- PROPULSION ------- Nuclear Pulse Thruster Cooled Nuclear Pulse Thruster Cooled Nuclear Pulse Thruster Cooled Nuclear Pulse Thruster Impulse Thruster > --- UTILITY ---------- Advanced Power Amplifier Visual Processing Unit 0b10 Decoder Chip [Skirmisher] Improved Targeting Computer Advanced Transmission Jammer Advanced Shield Generator Advanced Hacking Suite > --- WEAPON ----------- Vortex Rifle Phasing Sabre Vortex Lance > --- INVENTORY -------- Advanced Energy Well RU-N14's Throwing Claymores v3 RU-N14's Throwing Claymores v3 RU-N14's Throwing Claymores v3 RU-N14's Throwing Claymores v3 [Rating: 102] Favorites ----------- Power Ion Engine Engine Ion Engine Power Core Light Fission Core Reactor Light Antimatter Reactor Propulsion Improved Titanium Leg Treads Light Treads Leg Improved Titanium Leg Wheel Compact Wheel Hover Unit Cooled Airjet Flight Unit Cooled Nuclear Pulse Thruster Utility Visual Processing Unit Device Actuator Array Storage Small Storage Unit Processor Visual Processing Unit Hackware Authchip [Weapon] Protection Hardened Light Armor Plating Weapon Assault Rifle Energy Gun Medium Laser Energy Cannon Heavy Plasma Cannon Ballistic Gun Assault Rifle Ballistic Cannon Gauss Cannon Launcher Grenade Launcher Special Weapon Improved Remote Datajack Impact Weapon Power Maul Slashing Weapon Phasing Sabre Piercing Weapon Vortex Lance Special Melee Weapon Datajack Build | -11 -10 -10 -10 -9 -8 -7 -7 -6 -6 -5 -5 -5 -5 -4 -4 -4 -4 -4 -3 ------- Run | Scr Mat Min Exi Min Mat Fac DSF Fac Ext Fac Upp Upp Zhi Pro Fac Upp Upp War Pro Slots Evolved 12 | . . . . . 4 2 . 2 . 2 . . . . 2 . . . . Power 1 | . . . . . 1 . . . . . . . . . . . . . . Propulsion 4 | . . . . . 2 . . 1 . . . . . . 1 . . . . Utility 5 | . . . . . 1 1 . 1 . 1 . . . . 1 . . . . Weapon 2 | . . . . . . 1 . . . 1 . . . . . . . . . Parts Attached 174 | 7 12 1 1 . 6 16 . 26 44 14 5 7 6 3 15 2 2 6 1 Power 25 | 1 1 . . . . 3 . 5 8 1 1 1 . . 2 1 . 1 . Engine 16 | 1 1 . . . . 3 . 4 5 . . 1 . . 1 . . . . Core 7 | . . . . . . . . 1 3 1 1 . . . 1 . . . . Reactor 2 | . . . . . . . . . . . . . . . . 1 . 1 . Propulsion 52 | 4 6 . . . 3 7 . 7 10 6 2 1 3 1 2 . . . . Treads 13 | 2 2 . . . 1 2 . 1 5 . . . . . . . . . . Leg 30 | . 4 . . . 2 4 . 6 5 6 2 1 . . . . . . . Wheel 2 | 2 . . . . . . . . . . . . . . . . . . . Hover 1 | . . . . . . 1 . . . . . . . . . . . . . Flight 6 | . . . . . . . . . . . . . 3 1 2 . . . . Utility 45 | . 2 . . . 1 4 . 7 8 4 . 1 3 2 9 1 1 2 . Device 27 | . . . . . . . . 6 7 3 . . 1 2 7 . . 1 . Storage 7 | . 1 . . . . 2 . . . . . . 1 . 1 1 . 1 . Processor 7 | . 1 . . . 1 1 . 1 . 1 . . . . 1 . 1 . . Hackware 3 | . . . . . . 1 . . 1 . . . 1 . . . . . . Protection 1 | . . . . . . . . . . . . 1 . . . . . . . Artifact . | . . . . . . . . . . . . . . . . . . . . Weapon 52 | 2 3 1 1 . 2 2 . 7 18 3 2 4 . . 2 . 1 3 1 Energy Gun 9 | 1 1 . . . 1 . . . 4 . . 1 . . . . . 1 . Energy Cannon 2 | . . . . . . . . 1 . . 1 . . . . . . . . Ballistic Gun 14 | 1 1 1 1 . 1 . . 2 4 1 1 1 . . . . . . . Ballistic Cannon 12 | . . . . . . 2 . 3 6 . . . . . 1 . . . . Launcher 1 | . 1 . . . . . . . . . . . . . . . . . . Special Weapon 5 | . . . . . . . . 1 1 . . . . . . . 1 1 1 Impact Weapon 2 | . . . . . . . . . . 1 . . . . 1 . . . . Slashing Weapon 5 | . . . . . . . . . 3 1 . 1 . . . . . . . Piercing Weapon 1 | . . . . . . . . . . . . . . . . . . 1 . Special Melee Weapon 1 | . . . . . . . . . . . . 1 . . . . . . . Unidentified Prototypes 9 | . . . 1 . . 1 . . . . . . 4 . . . . 3 . Parts Lost 66 | . 2 1 . . 2 . . . 26 . 14 3 . 3 . 2 1 8 4 Power 10 | . . . . . . . . . 5 . 2 1 . . . 1 . 1 . Propulsion 28 | . 1 . . . 2 . . . 11 . 6 1 . 2 . . . 5 . Utility 15 | . . . . . . . . . 3 . 3 1 . 1 . . 1 2 4 Weapon 13 | . 1 1 . . . . . . 7 . 3 . . . . 1 . . . Highest Loss Streak 11 | . 1 1 . . 2 . . . 9 . 11 3 . 3 . 2 1 8 11 To Critical Strikes 1 | . . . . . . . . . . . . 1 . . . . . . . Average Slot Usage (%) 79 | . 95 100 97 85 54 89 99 93 76 91 49 40 46 72 71 77 76 75 10 Engine 8 | . 14 14 14 14 9 13 14 12 6 5 . 1 5 5 . . . . . Core 1 | . . . . . . . . . 2 5 3 3 . . 5 2 . . . Treads 5 | . 16 14 14 14 6 4 7 1 5 . . . . . . . . . . Leg 15 | . 8 14 14 14 11 21 23 31 18 28 12 5 5 4 . . . . . Flight 3 | . . . . . . . . . . . . . 2 20 20 26 26 25 . Device 4 | . . . . . . . . 5 5 10 2 . . . 15 18 14 13 5 Storage 5 | . 13 14 14 14 9 7 7 6 3 . . . . 3 . 2 . . . Processor 12 | . 13 14 14 14 9 15 15 13 11 9 11 11 11 11 10 10 14 15 4 Hackware 4 | . . . . . . 5 7 6 6 11 6 5 6 11 7 5 5 5 . Energy Gun 2 | . 14 3 . . 2 7 7 1 2 . . 1 . . . . . . . Ballistic Gun 5 | . 3 24 25 14 6 . . 5 2 . 1 . . . . . . . . Ballistic Cannon 1 | . . . . . . 11 15 5 2 . . . . . . . . . . Slashing Weapon 2 | . . . . . . . . . 2 11 3 . 5 5 5 5 5 5 . Naked Turns . | . . . . . . . . . . . . . . . . . . . . Heaviest Build 112 | 9 15 14 20 20 20 112 37 50 53 34 33 33 23 20 25 30 31 29 19 Greatest Support 95 | 40 40 20 20 20 23 77 60 95 95 83 83 35 20 23 31 31 31 31 3 Greatest Overweight (x) 6 | 1 . . . . 1 1 . 1 2 . 1 1 1 . . . . 2 6 Average Overweight (x) . | . . . . . . . . . . . . . . . . . . . . Largest Inventory Capacity 25 | 5 8 8 8 8 8 25 8 8 8 5 5 5 5 5 5 5 5 5 5 Average Capacity 6 | 5 7 8 8 8 8 11 8 8 6 5 5 5 5 5 5 5 5 5 5 Most Carried 9 | 5 6 7 7 7 8 9 8 8 8 5 5 4 5 5 5 5 5 5 5 Average Carried 5 | 2 5 6 6 7 6 7 7 7 5 4 3 3 4 4 4 4 4 4 4 Final Capacity 8 | 5 8 8 8 8 8 8 8 8 5 5 5 5 5 5 5 5 5 5 5 Final Carried 8 | 5 6 6 7 7 7 8 8 7 5 5 3 4 5 5 5 5 4 5 5 Class Distribution -------------------- 46% | Mutant 21% | Skirmisher 11% | Scavenger-Gladiator 10% | Sprinter 6% | Scavenger-Mutant 3% | Scavenger-Skirmisher Dominant Class ---------------- Mutant | -10/Materials Mutant | -10/Mines Mutant | -10/Exiles Mutant | -9/Mines Mutant | -8/Materials Skirmisher | -7/Factory Skirmisher | -7/DSF Skirmisher | -6/Factory Skirmisher | -6/Extension Scavenger-Gladiator | -5/Factory Mutant | -5/Upper Caves Mutant | -5/Upper Caves Mutant | -5/Zhirov Scavenger-Mutant | -4/Proximity Caves Sprinter | -4/Factory Sprinter | -4/Upper Caves Sprinter | -4/Upper Caves Sprinter | -4/Warlord Mutant | -3/Proximity Caves Resources | -11 -10 -10 -10 -9 -8 -7 -7 -6 -6 -5 -5 -5 -5 -4 -4 -4 -4 -4 -3 ----------- Run | Scr Mat Min Exi Min Mat Fac DSF Fac Ext Fac Upp Upp Zhi Pro Fac Upp Upp War Pro Matter Collected 2536 | 223 265 114 . 10 40 116 58 269 568 315 125 80 . 32 143 65 47 66 . Remotely . | . . . . . . . . . . . . . . . . . . . . Salvage Created 2795 | . 317 73 . 96 489 . 28 371 717 206 390 45 . 16 . . . . 47 Parts 173 | . 23 9 . 10 36 . 1 17 36 12 18 6 . 3 . . . . 2 Haulers Intercepted . | . . . . . . . . . . . . . . . . . . . . Recyclers Shooed 4 | . 1 . . . . . . 2 . 1 . . . . . . . . . Parts Field Recycled . | . . . . . . . . . . . . . . . . . . . . Retrieved Matter . | . . . . . . . . . . . . . . . . . . . . Parts Self-Destructed 64 | . . . . . . . . . . . 19 14 . 2 . . 1 26 2 Prevented 16 | . . . . . . . . . . . 1 . . . . . . 15 . Kills | -11 -10 -10 -10 -9 -8 -7 -7 -6 -6 -5 -5 -5 -5 -4 -4 -4 -4 -4 -3 ------- Run | Scr Mat Min Exi Min Mat Fac DSF Fac Ext Fac Upp Upp Zhi Pro Fac Upp Upp War Pro Combat Hostiles Destroyed 62 | . 10 5 . 4 8 . 1 5 13 3 9 2 . 1 . . . . 1 Melee 8 | . . . . . . . . . 1 3 3 . . 1 . . . . . Guns 36 | . 4 5 . 4 7 . 1 4 9 . 1 1 . . . . . . . Cannons 9 | . . . . . . . . 1 3 . 4 1 . . . . . . . AOE 8 | . 6 . . . 1 . . . . . . . . . . . . . 1 Classes Destroyed 14 | . 6 1 . . 2 . 1 1 1 . 1 . . 1 . . . . . Worker 2 | . 2 . . . . . . . . . . . . . . . . . . Builder 1 | . 1 . . . . . . . . . . . . . . . . . . Tunneler 1 | . . . . . 1 . . . . . . . . . . . . . . Recycler 2 | . 1 . . . 1 . . . . . . . . . . . . . . Watcher 12 | . 2 . . . 4 . . 2 2 2 . . . . . . . . . Swarmer 23 | . 3 3 . 3 4 . . . 3 . 5 2 . . . . . . . Saboteur 1 | . . . . . . . . . . . . . . 1 . . . . . Grunt 23 | . 7 . . 1 3 . . 4 5 . 2 . . . . . . . 1 Duelist 1 | . . . . . . . . . . . 1 . . . . . . . . Sentry 5 | . . . . . 1 . . . 3 . 1 . . . . . . . . Specialist 1 | . . . . . . . 1 . . . . . . . . . . . . Hunter 2 | . . . . . . . . . 2 . . . . . . . . . . Programmer 4 | . . . . . . . . 1 . 3 . . . . . . . . . Assembled 2 | . . 2 . . . . . . . . . . . . . . . . . Best Kill Streak 10 | . 10 2 . 3 6 . 1 4 4 2 4 2 . 1 . . . . 1 Combat Bots Only 8 | . 8 2 . 3 4 . 1 4 3 2 4 2 . 1 . . . . 1 Max Kills in Single Turn 3 | . 2 1 . 1 3 . 1 1 1 1 1 1 . 1 . . . . 1 Gunslinging . | . . . . . . . . . . . . . . . . . . . . Exploded 2 | . 2 . . . 1 . . . . . . . . . . . . . 1 Melee 1 | . . . . . . . . . 1 1 1 . . 1 . . . . . Uniques/NPCs Destroyed . | . . . . . . . . . . . . . . . . . . . . Combat | -11 -10 -10 -10 -9 -8 -7 -7 -6 -6 -5 -5 -5 -5 -4 -4 -4 -4 -4 -3 -------- Run | Scr Mat Min Exi Min Mat Fac DSF Fac Ext Fac Upp Upp Zhi Pro Fac Upp Upp War Pro Damage Taken 10297 | . 415 202 . 71 305 . 270 328 3831 180 2028 457 . 235 43 263 55 987 627 Core 2704 | . 32 18 . 6 60 . 44 22 549 . 622 108 . 77 24 62 . 604 476 Absorbed by Shields 64 | . . . . . . . . . . . . . . . . 64 . . . Regen/Repaired (Parts) 176 | . 106 . . . . . . 70 . . . . . . . . . . . Core Remaining (%) 68 | 100 . . . 77 89 . 93 . 32 . . . . 17 . . . . . Volleys Fired 129 | . 29 13 . . 2 1 3 5 45 1 18 5 . . . . 4 . 3 Largest 3 | . 2 2 . . 1 3 3 1 3 1 2 2 . . . . 1 . 1 Hottest 238 | . 80 60 . . 50 138 138 100 238 35 120 165 . . . . 7 . . Shots Fired 347 | . 47 26 . 13 40 3 9 41 124 1 25 11 . . . . 4 . 3 Gun 254 | . 34 26 . 13 40 1 3 36 76 1 18 6 . . . . . . . Cannon 70 | . . . . . . 2 6 3 47 . 7 5 . . . . . . . Launcher 13 | . 13 . . . . . . . . . . . . . . . . . . Special 10 | . . . . . . . . 2 1 . . . . . . . 4 . 3 Kinetic 234 | . 5 24 . 13 38 2 6 38 89 1 18 . . . . . . . . Thermal 91 | . 29 . . . 2 1 3 3 35 . 7 11 . . . . . . . Explosive 16 | . 13 . . . . . . . . . . . . . . . . . 3 Electromagnetic 2 | . . 2 . . . . . . . . . . . . . . . . . Robot Hit Streak 23 | . 2 5 . 3 10 . 9 13 15 16 23 3 . . . . 1 . . Robot Miss Streak 5 | . 4 5 . 3 3 . 4 2 5 . 2 5 . . . . 2 . . Penetration Max 1 | . . . . . . . . . . 1 . . . . . . . . . Secondary Targets . | . . . . . . . . . . . . . . . . . . . . Autonomous 139 | . . . . 13 39 . . 37 50 . . . . . . . . . . Shots Hit Robots 238 | . 15 12 . 7 27 . 7 28 85 11 31 7 . 1 . . 2 5 . Core Hits 126 | . 21 6 . 4 19 . 5 14 35 5 9 4 . 1 . . . . 3 Critical Kills 3 | . . . . 1 . . . . 1 . 1 . . . . . . . . Critical Parts Destroyed 6 | . . . . . . . . . 1 . 5 . . . . . . . . Critical Strikes 15 | . . . . 1 1 . . . 3 . 7 . . . . . . 2 1 Burn 1 | . . . . . 1 . . . . . . . . . . . . . . Destroy 6 | . . . . 1 . . . . 2 . 3 . . . . . . . . Blast 1 | . . . . . . . . . 1 . . . . . . . . . . Smash 3 | . . . . . . . . . . . 3 . . . . . . . . Sever 3 | . . . . . . . . . . . 1 . . . . . . 1 1 Sunder 1 | . . . . . . . . . . . . . . . . . . 1 . Melee Attacks 48 | . . . . . . . . . 2 14 24 . . 1 . 1 . 6 . Impact 19 | . . . . . . . . . . 2 16 . . . . 1 . . . Slashing 25 | . . . . . . . . . 2 12 8 . . 1 . . . 2 . Piercing . | . . . . . . . . . . . . . . . . . . . . Entropic 4 | . . . . . . . . . . . . . . . . . . 4 . Sneak Attacks 2 | . . . . . . . . . 1 . . . . . . . . 1 . Combat Hostiles 1 | . . . . . . . . . . . . . . . . . . 1 . Follow-up Attacks 6 | . . . . . . . . . . 3 3 . . . . . . . . Damage Inflicted 8858 | . 1173 158 . 235 1077 . 128 890 2603 496 872 186 . 51 . . . 486 503 Guns 4210 | . 162 158 . 235 928 . 36 797 1744 15 72 63 . . . . . . . Cannons 1083 | . . . . . . . 92 69 678 . 121 123 . . . . . . . Explosions 1510 | . 1011 . . . 149 . . . . . . . . . . . . . 350 Melee 1836 | . . . . . . . . . 139 481 679 . . 51 . . . 486 . Ramming 42 | . . . . . . . . . 42 . . . . . . . . . . Kinetic 4128 | . 11 158 . 235 916 . 92 835 1794 15 72 . . . . . . . . Thermal 1464 | . 426 . . . 12 . 36 55 628 . 121 186 . . . . . . . Explosive 1086 | . 736 . . . . . . . . . . . . . . . . . 350 Electromagnetic 149 | . . . . . 149 . . . . . . . . . . . . . . Impact 616 | . . . . . . . . . . 92 524 . . . . . . . . Slashing 964 | . . . . . . . . . 139 389 155 . . 51 . . . 77 153 Piercing . | . . . . . . . . . . . . . . . . . . . . Entropic 409 | . . . . . . . . . . . . . . . . . . 409 . Highest Corruption 3 | . . . . . . . . . . 3 3 3 3 3 . 1 1 1 2 Average Corruption 2 | . . . . . . . . . . 2 3 3 3 3 . 1 1 1 1 Corruption Purged . | . . . . . . . . . . . . . . . . . . . . Corruption Blocked . | . . . . . . . . . . . . . . . . . . . . Effects 27 | . . . . . . . . . . 3 12 5 3 4 . . . . . Message Errors 3 | . . . . . . . . . . . 2 . 1 . . . . . . Matter Fused 2 | . . . . . . . . . . 1 . 1 . . . . . . . Heat Flow Errors 5 | . . . . . . . . . . . 2 1 1 1 . . . . . Energy Discharges 5 | . . . . . . . . . . 1 1 1 1 1 . . . . . Parts Rejected 1 | . . . . . . . . . . 1 . . . . . . . . . Data Loss (minor) 6 | . . . . . . . . . . . 5 . . 1 . . . . . Data Loss (major) 2 | . . . . . . . . . . . 1 1 . . . . . . . Misfires 1 | . . . . . . . . . . . . 1 . . . . . . . Alerts 2 | . . . . . . . . . . . 1 . . 1 . . . . . Overload Shots . | . . . . . . . . . . . . . . . . . . . . Overflow Damage 422 | . 74 . . . . . . . 24 91 170 . . . . . . 63 . Projectiles 17 | . . . . . . . . . 17 . . . . . . . . . . Explosions 74 | . 74 . . . . . . . . . . . . . . . . . . Melee 331 | . . . . . . . . . 7 91 170 . . . . . . 63 . Knockbacks 4 | . . . . . . . . . 3 . 1 . . . . . . . . Impact 1 | . . . . . . . . . . . 1 . . . . . . . . Kinetic 3 | . . . . . . . . . 3 . . . . . . . . . . Secondary . | . . . . . . . . . . . . . . . . . . . . Self-Inflicted Damage 237 | . 161 . . . . . . 76 . . . . . . . . . . . Shots 5 | . 4 . . . . . . 1 . . . . . . . . . . . Rammed . | . . . . . . . . . . . . . . . . . . . . Targets Rammed 4 | . . . . . . . . . 4 . . . . . . . . . . Kicked 4 | . . . . . . . . . 4 . . . . . . . . . . Crushed . | . . . . . . . . . . . . . . . . . . . . Highest Temperature 366 | . 150 20 . . 10 69 36 44 174 . 138 366 230 104 . . . . . Average Temperature 60 | . 36 10 . . 7 37 20 8 56 . 46 161 120 59 . . . . . Received Heat Transfer 2212 | . 90 60 . 9 162 . . 69 915 . 477 27 . 39 9 48 12 199 96 Siege Activations . | . . . . . . . . . . . . . . . . . . . . Robots Corrupted . | . . . . . . . . . . . . . . . . . . . . Combat Hostiles . | . . . . . . . . . . . . . . . . . . . . Parts Fried 2 | . . . . . . . . . . . 2 . . . . . . . . Impact Corruptions 10 | . . . . . . . . . 1 2 7 . . . . . . . . Robots Melted . | . . . . . . . . . . . . . . . . . . . . Combat Hostiles . | . . . . . . . . . . . . . . . . . . . . Parts Melted 3 | . . . . . . . . . 3 . . . . . . . . . . Heat Transferred 2537 | . 594 . . . 111 . 111 100 1175 . 148 298 . . . . . . . Parts Sabotaged . | . . . . . . . . . . . . . . . . . . . . Parts Stolen . | . . . . . . . . . . . . . . . . . . . . Parts Stripped . | . . . . . . . . . . . . . . . . . . . . Power Chain Reactions . | . . . . . . . . . . . . . . . . . . . . Missiles Intercepted . | . . . . . . . . . . . . . . . . . . . . Alert | -11 -10 -10 -10 -9 -8 -7 -7 -6 -6 -5 -5 -5 -5 -4 -4 -4 -4 -4 -3 ------- Run | Scr Mat Min Exi Min Mat Fac DSF Fac Ext Fac Upp Upp Zhi Pro Fac Upp Upp War Pro Peak Influence 566 | . 566 230 . 172 351 164 164 235 276 410 . . . . 208 . . . . Initial 165 | . . 165 . . 66 159 114 86 40 24 . . . . 154 . . . . Average 151 | . 327 113 . 86 261 159 139 105 88 208 . . . . 163 . . . . Maximum Alert Level 2 | . 2 1 . . 1 . . 1 1 2 . . . . 1 . . . . Low Security (%) 72 | 100 27 79 . 100 6 100 100 84 96 30 . . . . 96 . . . . Level 1 22 | . 29 20 . . 93 . . 15 3 68 . . . . 3 . . . . Level 2 4 | . 43 . . . . . . . . . . . . . . . . . . Level 3 . | . . . . . . . . . . . . . . . . . . . . Level 4 . | . . . . . . . . . . . . . . . . . . . . Level 5 . | . . . . . . . . . . . . . . . . . . . . High Security . | . . . . . . . . . . . . . . . . . . . . Max Security . | . . . . . . . . . . . . . . . . . . . . Squads Dispatched 17 | . 1 . . . 3 . 1 1 2 3 . . . 1 5 . . . . Investigation 6 | . 1 . . . 1 . . . 2 1 . . . . 1 . . . . Extermination 3 | . . . . . . . . 1 . 1 . . . . 1 . . . . Reinforcement 6 | . . . . . 1 . 1 . . 1 . . . . 3 . . . . Assault 1 | . . . . . . . . . . . . . . 1 . . . . . Garrison 1 | . . . . . 1 . . . . . . . . . . . . . . Intercept . | . . . . . . . . . . . . . . . . . . . . Searches Triggered . | . . . . . . . . . . . . . . . . . . . . Construction Impeded . | . . . . . . . . . . . . . . . . . . . . Haulers Reinforced . | . . . . . . . . . . . . . . . . . . . . Active Scanning Responses . | . . . . . . . . . . . . . . . . . . . . Cargo Convoy Interrupts . | . . . . . . . . . . . . . . . . . . . . Stealth | -11 -10 -10 -10 -9 -8 -7 -7 -6 -6 -5 -5 -5 -5 -4 -4 -4 -4 -4 -3 --------- Run | Scr Mat Min Exi Min Mat Fac DSF Fac Ext Fac Upp Upp Zhi Pro Fac Upp Upp War Pro Distress Signals 2 | . 1 . . . 1 . . . . . . . . . . . . . . Communications Jammed . | . . . . . . . . . . . . . . . . . . . . Distress Signals . | . . . . . . . . . . . . . . . . . . . . Times Spotted 219 | . 17 13 . 6 15 . 3 8 34 10 13 7 . 20 3 21 6 31 12 Peak Tracking Total 18 | . 4 5 . 3 5 . 1 4 7 2 7 5 . 10 4 18 3 16 6 Tactical Retreats 36 | . . 1 . . . . 2 1 12 . 2 1 . 8 . 2 3 2 2 Traps | -11 -10 -10 -10 -9 -8 -7 -7 -6 -6 -5 -5 -5 -5 -4 -4 -4 -4 -4 -3 ------- Run | Scr Mat Min Exi Min Mat Fac DSF Fac Ext Fac Upp Upp Zhi Pro Fac Upp Upp War Pro Traps Triggered 4 | . 1 . . . 1 . 1 . 1 . . . . . . . . . . Indirectly . | . . . . . . . . . . . . . . . . . . . . Trap Hack Attempts . | . . . . . . . . . . . . . . . . . . . . Triggered . | . . . . . . . . . . . . . . . . . . . . Disarmed . | . . . . . . . . . . . . . . . . . . . . Reprogrammed . | . . . . . . . . . . . . . . . . . . . . Reused 1 | . . . . . . . . . . . . . . . . . 1 . . Traps Extracted . | . . . . . . . . . . . . . . . . . . . . Installed 3 | . . . . . . . 2 . . . . . . . . . 1 . . Triggered 12 | . . . . . . . . . . . 1 . . . . . 1 10 . Most Traps Carried 1 | . . . . . . . . . . . . . . . . . 1 . . Machines | -11 -10 -10 -10 -9 -8 -7 -7 -6 -6 -5 -5 -5 -5 -4 -4 -4 -4 -4 -3 ---------- Run | Scr Mat Min Exi Min Mat Fac DSF Fac Ext Fac Upp Upp Zhi Pro Fac Upp Upp War Pro Machines Disabled 32 | . 3 . . . 2 . . 6 1 20 . . . . . . . . . Max in Single Turn 2 | . 2 . . . 2 . . 2 1 . . . . . . . . . . Machines Sabotaged . | . . . . . . . . . . . . . . . . . . . . Garrisons Compromised . | . . . . . . . . . . . . . . . . . . . . Overloaded Fab Kills . | . . . . . . . . . . . . . . . . . . . . Hacking | -11 -10 -10 -10 -9 -8 -7 -7 -6 -6 -5 -5 -5 -5 -4 -4 -4 -4 -4 -3 --------- Run | Scr Mat Min Exi Min Mat Fac DSF Fac Ext Fac Upp Upp Zhi Pro Fac Upp Upp War Pro Machines Accessed 56 | . 7 . 2 . 3 2 . 4 9 5 . . 9 . 2 . 2 11 . Terminals 25 | . 5 . . . 1 2 . 2 9 3 . . . . 2 . 1 . . Fabricators . | . . . . . . . . . . . . . . . . . . . . Repair Stations 3 | . 1 . . . . . . 2 . . . . . . . . . . . Recycling Units 1 | . 1 . . . . . . . . . . . . . . . . . . Scanalyzers 2 | . . . . . 1 . . . . 1 . . . . . . . . . Garrison Access 2 | . . . . . 1 . . . . 1 . . . . . . . . . Total Hacks 153 | . 16 . 2 . 9 4 . 6 16 10 . . 48 . 4 . 6 32 . Successful 130 | . 14 . 2 . 5 1 . 6 7 7 . . 48 . 2 . 6 32 . Failed 23 | . 2 . . . 4 3 . . 9 3 . . . . 2 . . . . Catastrophic 6 | . . . . . 1 . . . 4 . . . . . 1 . . . . Database Lockouts . | . . . . . . . . . . . . . . . . . . . . Manual 38 | . 2 . 1 . 4 1 . 3 7 6 . . . . 5 . 1 8 . Terminals 51 | . 12 . . . 2 4 . 2 16 6 . . . . 4 . 5 . . Fabricators . | . . . . . . . . . . . . . . . . . . . . Repair Stations 6 | . 2 . . . . . . 4 . . . . . . . . . . . Recycling Units 2 | . 2 . . . . . . . . . . . . . . . . . . Scanalyzers 8 | . . . . . 6 . . . . 2 . . . . . . . . . Garrison Access 3 | . . . . . 1 . . . . 2 . . . . . . . . . Terminal Hacks 105 | . 8 . 2 . . 1 . 2 4 2 . . 48 . . . 6 32 . Record 68 | . . . 1 . . . . . . . . . 36 . . . 5 26 . Part Schematic 4 | . . . . . . . . . . . . . 4 . . . . . . Robot Analysis 5 | . 1 . . . . . . . . . . . 4 . . . . . . Prototype ID Bank 11 | . 2 . . . . . . . . . . . 4 . . . . 5 . Open Door 7 | . . . . . . . . 1 4 . . . . . . . 1 1 . Open DSF 3 | . . . . . . 1 . 1 . 1 . . . . . . . . . Branch Access Points 1 | . 1 . . . . . . . . . . . . . . . . . . Terminal Index 1 | . 1 . . . . . . . . . . . . . . . . . . Alert Level 1 | . 1 . . . . . . . . . . . . . . . . . . Unreport Threat 1 | . . . . . . . . . . 1 . . . . . . . . . Locate Traps 1 | . 1 . . . . . . . . . . . . . . . . . . Security Status 1 | . 1 . . . . . . . . . . . . . . . . . . EX-Prototype ID Bank 1 | . . . 1 . . . . . . . . . . . . . . . . Fabricator Hacks . | . . . . . . . . . . . . . . . . . . . . Repair Station Hacks 6 | . 2 . . . . . . 4 . . . . . . . . . . . Scan Component 3 | . 1 . . . . . . 2 . . . . . . . . . . . Repair 3 | . 1 . . . . . . 2 . . . . . . . . . . . Recycling Unit Hacks 2 | . 2 . . . . . . . . . . . . . . . . . . Report Inventory 1 | . 1 . . . . . . . . . . . . . . . . . . Retrieve Components 1 | . 1 . . . . . . . . . . . . . . . . . . Scanalyzer 7 | . . . . . 5 . . . . 2 . . . . . . . . . Insert Component 5 | . . . . . 4 . . . . 1 . . . . . . . . . Analyze 2 | . . . . . 1 . . . . 1 . . . . . . . . . Garrison Access Hacks . | . . . . . . . . . . . . . . . . . . . . Unauthorized Hacks 10 | . 2 . . . . . . . 3 3 . . . . 2 . . . . Terminals 10 | . 2 . . . . . . . 3 3 . . . . 2 . . . . Track 2 | . . . . . . . . . 1 1 . . . . . . . . . Assimilate 4 | . 1 . . . . . . . 1 1 . . . . 1 . . . . Operators 4 | . 1 . . . . . . . 1 1 . . . . 1 . . . . Fabricators . | . . . . . . . . . . . . . . . . . . . . Repair Stations . | . . . . . . . . . . . . . . . . . . . . Recycling Units . | . . . . . . . . . . . . . . . . . . . . Scanalyzers . | . . . . . . . . . . . . . . . . . . . . Garrison Access . | . . . . . . . . . . . . . . . . . . . . Data Cores Recovered . | . . . . . . . . . . . . . . . . . . . . Used . | . . . . . . . . . . . . . . . . . . . . Hacking Detections 23 | . 5 . . . 3 1 . 1 6 3 . . . . 3 . 1 . . Full Trace Events 5 | . . . . . 1 . . . 2 1 . . . . 1 . . . . Feedback Events . | . . . . . . . . . . . . . . . . . . . . Feedback Blocked . | . . . . . . . . . . . . . . . . . . . . Robot Schematics Acquired . | . . . . . . . . . . . . . . . . . . . . Robots Built . | . . . . . . . . . . . . . . . . . . . . Authchips . | . . . . . . . . . . . . . . . . . . . . Time . | . . . . . . . . . . . . . . . . . . . . Total Robot Build Rating . | . . . . . . . . . . . . . . . . . . . . Part Schematics Acquired 6 | . . . . . 1 . . . . 1 . . 4 . . . . . . Parts Built . | . . . . . . . . . . . . . . . . . . . . Authchips . | . . . . . . . . . . . . . . . . . . . . Time . | . . . . . . . . . . . . . . . . . . . . Total Part Build Rating . | . . . . . . . . . . . . . . . . . . . . Parts Repaired 3 | . 1 . . . . . . 2 . . . . . . . . . . . Time 95 | . 13 . . . . . . 82 . . . . . . . . . . . Parts Recycled . | . . . . . . . . . . . . . . . . . . . . Recycled Matter . | . . . . . . . . . . . . . . . . . . . . Retrieved Matter . | . . . . . . . . . . . . . . . . . . . . Retrieved Components 2 | . 2 . . . . . . . . . . . . . . . . . . Parts Scanalyzed 2 | . . . . . 1 . . . . 1 . . . . . . . . . Part Schematics Acquired 2 | . . . . . 1 . . . . 1 . . . . . . . . . Parts Damaged . | . . . . . . . . . . . . . . . . . . . . Bothacking | -11 -10 -10 -10 -9 -8 -7 -7 -6 -6 -5 -5 -5 -5 -4 -4 -4 -4 -4 -3 ------------ Run | Scr Mat Min Exi Min Mat Fac DSF Fac Ext Fac Upp Upp Zhi Pro Fac Upp Upp War Pro Used RIF Installer . | . . . . . . . . . . . . . . . . . . . . Robots Hacked 1 | . . . . . . . . . . . . . . . . . 1 . . Non-combat . | . . . . . . . . . . . . . . . . . . . . Combat 1 | . . . . . . . . . . . . . . . . . 1 . . Robot Hacks Applied 1 | . . . . . . . . . . . . . . . . . 1 . . parse_system 1 | . . . . . . . . . . . . . . . . . 1 . . Relay Couplers Released . | . . . . . . . . . . . . . . . . . . . . Fabnet Peak Effective % . | . . . . . . . . . . . . . . . . . . . . Robots Rewired . | . . . . . . . . . . . . . . . . . . . . Allies Hacked . | . . . . . . . . . . . . . . . . . . . . Hacks Repelled . | . . . . . . . . . . . . . . . . . . . . Allies | -11 -10 -10 -10 -9 -8 -7 -7 -6 -6 -5 -5 -5 -5 -4 -4 -4 -4 -4 -3 -------- Run | Scr Mat Min Exi Min Mat Fac DSF Fac Ext Fac Upp Upp Zhi Pro Fac Upp Upp War Pro Total Allies 14 | . 1 2 . 3 . . . . 7 1 . . . . . . . . . Largest Group 3 | . 1 2 2 3 3 . . . 2 3 . . . . . . . . . Highest-Rated Group 69 | . 10 36 36 40 40 . . . 59 69 . . . . . . . . . Highest-Rated Ally 39 | . 10 31 31 16 16 . . . 39 39 . . . . . . . . . Total Orders 7 | . . . . . . . . 4 1 2 . . . . . . . . . ROAM 1 | . . . . . . . . . 1 . . . . . . . . . . EXPLORE 5 | . . . . . . . . 3 . 2 . . . . . . . . . RETURN 1 | . . . . . . . . 1 . . . . . . . . . . . Ally Attacks 58 | . . 1 . 7 24 . . . 12 14 . . . . . . . . . Total Damage 958 | . . . . 70 181 . . . 336 371 . . . . . . . . . Kills 9 | . . . . 2 1 . . . 2 4 . . . . . . . . . Allies Corrupted . | . . . . . . . . . . . . . . . . . . . . Allies Melted 1 | . . 1 . . . . . . . . . . . . . . . . . Intel | -11 -10 -10 -10 -9 -8 -7 -7 -6 -6 -5 -5 -5 -5 -4 -4 -4 -4 -4 -3 ------- Run | Scr Mat Min Exi Min Mat Fac DSF Fac Ext Fac Upp Upp Zhi Pro Fac Upp Upp War Pro Robot Analysis Total 5 | . 1 . . . . . . . . . . . 4 . . . . . . Derelict Logs Recovered 4 | . . . . . . . . . . . . . . 1 . 1 2 . . Drone Launches 6 | . . . . . . . . 4 . 2 . . . . . . . . . Drone Recoveries 3 | . . . . . . . . 2 . 1 . . . . . . . . . Exploration | -11 -10 -10 -10 -9 -8 -7 -7 -6 -6 -5 -5 -5 -5 -4 -4 -4 -4 -4 -3 ------------- Run | Scr Mat Min Exi Min Mat Fac DSF Fac Ext Fac Upp Upp Zhi Pro Fac Upp Upp War Pro Turns Passed 10080 | 94 761 732 905 93 354 373 172 991 2135 845 561 408 209 270 266 121 168 472 150 Spaces Moved 9750 | 54 427 419 565 57 222 233 107 615 1381 655 375 311 195 664 696 407 607 1500 260 Core 408 | 2 . . . . . . . . 145 . . . . . . . . 1 260 Treads 1894 | 43 353 419 565 57 148 . . 20 289 . . . . . . . . . . Legs 3512 | . 74 . . . 74 233 107 595 947 655 375 311 141 . . . . . . Wheels 9 | 9 . . . . . . . . . . . . . . . . . . . Hover . | . . . . . . . . . . . . . . . . . . . . Flight 3927 | . . . . . . . . . . . . . 54 664 696 407 607 1499 . Fastest Speed 25 | 50 120 160 160 160 120 120 130 128 50 97 114 120 39 29 25 25 25 25 50 Average Speed 88 | 145 153 160 160 160 149 138 130 131 125 107 120 122 99 36 27 25 25 25 52 Slowest Speed 350 | 160 160 160 160 160 190 200 130 240 190 120 190 190 190 39 29 25 25 150 350 Overloaded Moves . | . . . . . . . . . . . . . . . . . . . . Propulsion Burnouts . | . . . . . . . . . . . . . . . . . . . . Robots Hopped 10 | . . . . . . . . . . . . . . . . 1 1 8 . Cave-ins Triggered . | . . . . . . . . . . . . . . . . . . . . Teleports 1 | . . . . . . . . . . . . . 1 . . . . . . Exploration Rate (%) 52 | 4 78 89 94 14 32 4 58 19 91 19 65 51 62 86 10 55 70 93 46 Regions Visited 19 Branch Regions 12 Pre-discovered Areas 5 | . . . 1 . . . . . . . . . 3 . . . . 1 . Known Exits Taken 3 | . 1 . . . . 1 . . . . . . . . 1 . . . . Unknown Exits Taken 15 | 1 . 1 1 1 1 . . 1 1 1 1 1 1 1 . 1 1 1 . Scrap Searched 7 | . . 1 . . . . . . . . . 1 . 1 . 3 1 . . Spaces Dug . | . . . . . . . . . . . . . . . . . . . . Terrain Destroyed 292 | . 92 . . 13 25 . . 52 32 . 4 1 . . . . . . 73 Melee . | . . . . . . . . . . . . . . . . . . . . Projectile 88 | . . . . 13 25 . . 14 32 . 3 1 . . . . . . . AOE 203 | . 92 . . . . . . 38 . . . . . . . . . . 73 Terrain Rammed . | . . . . . . . . . . . . . . . . . . . . Walls Destroyed . | . . . . . . . . . . . . . . . . . . . . Machines Disabled . | . . . . . . . . . . . . . . . . . . . . Actions | -11 -10 -10 -10 -9 -8 -7 -7 -6 -6 -5 -5 -5 -5 -4 -4 -4 -4 -4 -3 --------- Run | Scr Mat Min Exi Min Mat Fac DSF Fac Ext Fac Upp Upp Zhi Pro Fac Upp Upp War Pro Total 10855 | 67 485 455 567 59 244 278 133 785 1703 770 419 327 205 690 770 423 621 1582 272 Wait 578 | . 10 22 . 3 10 15 18 118 146 81 1 1 . 18 49 10 4 68 4 Move 9715 | 53 426 418 564 56 221 232 106 614 1380 654 374 310 194 663 695 404 604 1487 260 Hop 6 | . . . . . . . . . . . . . . . . 1 1 4 . Pick Up 49 | 5 5 1 . . 1 6 1 4 12 . . 2 . 1 4 2 1 4 . Fast Attach 99 | 7 2 . 1 . 2 8 . 12 25 10 2 4 8 3 8 1 2 4 . Attach 46 | . 3 1 . . 4 2 . 5 17 1 3 3 . . 3 1 . 2 1 Detach 25 | . 1 . 1 . 3 1 . 3 4 1 1 2 1 1 2 . 1 1 2 Swap 31 | . 7 . . . . 6 . 9 2 3 . . . . 4 . . . . Drop 75 | 2 2 . 1 . 1 7 1 15 14 9 . . 1 3 5 3 3 6 2 Fire 129 | . 29 13 . . 2 1 3 5 45 1 18 5 . . . . 4 . 3 Melee 40 | . . . . . . . . . 2 10 20 . . 1 . 1 . 6 . Ram . | . . . . . . . . . . . . . . . . . . . . Kick 4 | . . . . . . . . . 4 . . . . . . . . . . Crush . | . . . . . . . . . . . . . . . . . . . . Escape Stasis 5 | . . . . . . . . . 5 . . . . . . . . . . Rewire 50 | . . . . . . . 2 . 47 . . . 1 . . . . . . Trap 3 | . . . . . . . 2 . . . . . . . . . 1 . . Miscellaneous . | . . . . . . . . . . . . . . . . . . . . Route ------- -11/Scrapyard -10/Materials (discovered 4 exits: [*Mat x2] / *Min x2) -10/Mines -10/Exiles (discovered 2 exits: [*Min x2]) -9/Mines -8/Materials -7/Factory -7/DSF -6/Factory -6/Extension (discovered 2 exits: *Fac / [*Cet]) -5/Factory -5/Upper Caves -5/Upper Caves -5/Zhirov -4/Proximity Caves -4/Factory (discovered 2 exits: *Upp x2) -4/Upper Caves -4/Upper Caves (discovered 2 exits: *Res / *War) -4/Warlord -3/Proximity Caves (discovered 1 exit: Res) History --------- Turn | Location | Event 31 | -11/Scrapyard | Discovered new exit (range 15) 95 | -11/Scrapyard | Entered Materials 317 | -10/Materials | Build established: Mutant 338 | -10/Materials | Destroyed 8 combat bots 471 | -10/Materials | Identified exit to Mines 518 | -10/Materials | Discovered new exit (range 5) 691 | -10/Materials | Discovered new exit (range 11) 715 | -10/Materials | Repaired Lgt. Treads 856 | -10/Materials | Entered Mines 856 | -10/Mines | Accompanied by 1 ally 887 | -10/Mines | Met a Derelict bent on vengeance 1004 | -10/Mines | Assembled infested the area 1009 | -10/Mines | Assisted by a Guerilla fighting off Assembled 1551 | -10/Mines | Deemed a non-threat by the Exiles lab entrance 1553 | -10/Mines | Discovered new exit (range 5) 1588 | -10/Mines | Entered Exiles 1588 | -10/Exiles | Accompanied by 2 allies 1609 | -10/Exiles | Discovered new exit (range 17) 1618 | -10/Exiles | Led the pair of lost Derelicts to a safe place 1630 | -10/Exiles | Met 8R-AWN 1656 | -10/Exiles | Met EX-HEX 1760 | -10/Exiles | Met EX-DEC 1846 | -10/Exiles | Discovered new exit (range 11) 1977 | -10/Exiles | Visited The Gauntlet 2172 | -10/Exiles | Learned location of Zion (-6) 2230 | -10/Exiles | Met EX-BIN 2252 | -10/Exiles | Aligned with FarCom system 2254 | -10/Exiles | Given EX-Vault access code 2321 | -10/Exiles | Opened EX-Vault 2329 | -10/Exiles | Found Prototype Ballistic Gun 2329 | -10/Exiles | Identified AWS/Gauss 2365 | -10/Exiles | Warned to stay clear of 0b10 Research branches 2493 | -10/Exiles | Left Exiles lab with AWS/Gauss 2493 | -10/Exiles | Entered Mines 2557 | -9/Mines | Discovered new exit (range 6) 2565 | -9/Mines | Assisted by bots powering up and referring to "LRC-V3" 2586 | -9/Mines | Entered Materials 2586 | -8/Materials | Accompanied by 3 allies 2586 | -8/Materials | Evolved 4 slots: Power x1, Propulsion x2, Utility x1 2756 | -8/Materials | Garrison activated, responded to threat 2878 | -8/Materials | Discovered new exit (range 17) 2940 | -8/Materials | Entered Factory 2940 | -7/Factory | Evolved 2 slots: Utility x1, Weapon x1 3311 | -7/Factory | Identified exit to DSF 3313 | -7/Factory | Entered DSF 3319 | -7/DSF | Build established: Skirmisher 3414 | -7/DSF | Additional patrols routed to DSF 3453 | -7/DSF | Discovered new exit (range 18) 3485 | -7/DSF | Entered Factory 3485 | -6/Factory | Evolved 2 slots: Propulsion x1, Utility x1 3606 | -6/Factory | Repaired Med. Treads 4211 | -6/Factory | Repaired Carbon-fiber Leg 4462 | -6/Factory | Discovered new exit (range 10) 4476 | -6/Factory | Entered Extension 4958 | -6/Extension | Rescued a captive Derelict 4959 | -6/Extension | Rescued a captive Derelict 5229 | -6/Extension | Spotted B-75 Beast 5248 | -6/Extension | Spotted B-75 Beast 5515 | -6/Extension | Lost 9 parts (5n1u3w) 5956 | -6/Extension | Build established: Scavenger-Skirmisher 6056 | -6/Extension | Lost 3 parts (1p2w) 6089 | -6/Extension | Core integrity fell below 50% 6126 | -6/Extension | Lost 8 parts (2p5n1u) 6127 | -6/Extension | Rescued a captive Derelict 6128 | -6/Extension | Rescued a captive Derelict 6287 | -6/Extension | Rescued a captive Derelict 6317 | -6/Extension | Rescued a captive Derelict 6404 | -6/Extension | Discovered new exit (range 10) 6405 | -6/Extension | Discovered new exit (range 6) 6611 | -6/Extension | Entered Factory 6611 | -5/Factory | Accompanied by 2 allies 6611 | -5/Factory | Evolved 2 slots: Utility x1, Weapon x1 6627 | -5/Factory | Identified exit to DSF 6637 | -5/Factory | Build established: Scavenger-Gladiator 7444 | -5/Factory | Discovered new exit (range 10) 7456 | -5/Factory | Entered Upper Caves 7528 | -5/Upper Caves | Attracted the attention of an 0b10 outpost 7627 | -5/Upper Caves | Core integrity fell below 50% 7646 | -5/Upper Caves | Lost 11 parts (2p4n3u2w) 7814 | -5/Upper Caves | Lost 3 parts (2n1w) 7893 | -5/Upper Caves | Build established: Mutant 8005 | -5/Upper Caves | Discovered new exit (range 11) 8017 | -5/Upper Caves | Entered another Upper Caves area 8227 | -5/Upper Caves | Encountered a Warlord checkpoint 8363 | -5/Upper Caves | Discovered new exit (range 12) 8371 | -5/Upper Caves | Lost 3 parts (1p1n1u) 8425 | -5/Upper Caves | Entered Zhirov 8425 | -5/Zhirov | Discovered new exit (range 4) 8447 | -5/Zhirov | Met Zhirov 8475 | -5/Zhirov | Learned location of Quarantine (-3) 8475 | -5/Zhirov | Learned location of Testing (-2) 8475 | -5/Zhirov | Learned location of Command (-1) 8499 | -5/Zhirov | Zhirov requested help retrieving the SGEMP Prototype 8523 | -5/Zhirov | Found Alien Artifact 8523 | -5/Zhirov | Identified Integrated Dissipator 8523 | -5/Zhirov | Installed Integrated Dissipator, increased core heat dissipation (+20) 8541 | -5/Zhirov | Found Alien Artifact 8541 | -5/Zhirov | Identified Transdimensional Reconstructor 8541 | -5/Zhirov | Warped through subspace 8634 | -5/Zhirov | Entered Proximity Caves 8640 | -4/Proximity Caves | Attracted the attention of an 0b10 outpost 8748 | -4/Proximity Caves | Learned location of 1 exit from Research 8870 | -4/Proximity Caves | Spotted B-86 Titan 8886 | -4/Proximity Caves | Core integrity fell below 20% 8900 | -4/Proximity Caves | Attracted the attention of an 0b10 checkpoint 8902 | -4/Proximity Caves | Discovered new exit (range 3) 8904 | -4/Proximity Caves | Entered Factory 8904 | -4/Factory | Evolved 2 slots: Propulsion x1, Utility x1 8908 | -4/Factory | Discovered new exit (range 11) 8913 | -4/Factory | Discovered new exit (range 12) 8919 | -4/Factory | Lost 3 parts (2n1u) 9036 | -4/Factory | Identified exit to Upper Caves 9170 | -4/Factory | Entered Upper Caves 9192 | -4/Upper Caves | Build established: Sprinter 9245 | -4/Upper Caves | Attracted the attention of an 0b10 checkpoint 9267 | -4/Upper Caves | Attracted the attention of an 0b10 outpost 9279 | -4/Upper Caves | Learned Research emergency access door positions 9279 | -4/Upper Caves | Spotted B-86 Titan 9284 | -4/Upper Caves | Discovered new exit (range 10) 9291 | -4/Upper Caves | Entered another Upper Caves area 9295 | -4/Upper Caves | Discovered new exit (range 8) 9338 | -4/Upper Caves | Learned location of 2 exits from Research 9358 | -4/Upper Caves | Learned 12 Research zone layouts 9420 | -4/Upper Caves | Learned location of 1 exit from Factory 9420 | -4/Upper Caves | Learned Extension trap positions 9420 | -4/Upper Caves | Learned Extension emergency access door positions 9420 | -4/Upper Caves | Learned Armory security intel 9420 | -4/Upper Caves | Learned Factory garrison access intel 9448 | -4/Upper Caves | Discovered new exit (range 9) 9459 | -4/Upper Caves | Entered Warlord 9475 | -4/Warlord | System corruption cleaned by Quarantine Array 9533 | -4/Warlord | Found Prototype Special Weapon 9533 | -4/Warlord | Identified RU-N14's Throwing Claymores v3 9537 | -4/Warlord | Found RU-N14's Throwing Claymores v3 9539 | -4/Warlord | Found RU-N14's Throwing Claymores v3 9541 | -4/Warlord | Found RU-N14's Throwing Claymores v3 9623 | -4/Warlord | Warlord's base attacked by MAIN.C 9634 | -4/Warlord | Found Prototype Piercing Weapon 9634 | -4/Warlord | Identified Vortex Lance 9637 | -4/Warlord | Found Prototype Energy Gun 9637 | -4/Warlord | Identified Vortex Rifle 9669 | -4/Warlord | Learned Research garrison access intel 9670 | -4/Warlord | Learned 4 Armory zone layouts 9670 | -4/Warlord | Learned 4 Quarantine zone layouts 9670 | -4/Warlord | Learned 4 Quarantine zone layouts 9670 | -4/Warlord | Learned location of Armory (-3) 9670 | -4/Warlord | Learned Armory emergency access door positions 9673 | -4/Warlord | Met Warlord 9853 | -4/Warlord | Warlord forces counterattacked 9917 | -4/Warlord | Discovered new exit (range 16) 9923 | -4/Warlord | Spotted Striker 9931 | -4/Warlord | Core integrity fell below 50% 9931 | -4/Warlord | Entered Proximity Caves 9932 | -3/Proximity Caves | Identified exit to Research 9949 | -3/Proximity Caves | Core integrity fell below 20% 9964 | -3/Proximity Caves | Attracted the attention of an 0b10 checkpoint 9970 | -3/Proximity Caves | Lost 11 parts (1p5n5u) 10081 | -3/Proximity Caves | Destroyed by P-80 Master with Gamma Rifle Last Messages --------------- Loading 1 Research entrance... 09932_ 0b10 Decoder Chip [Skirmisher] destroyed. 09933_ Visual Processing Unit destroyed. 09936_ G-73 Enforcer destroyed. 09938_ G-67 Veteran Adv. Heat Sink severed. 09939_ The unstable cave ceiling collapses. 09939_ Adv. Hacking Suite destroyed. 09943_ Myomer Leg fries itself beyond repair. 09943_ Dropped Adv. Energy Well. 09944_ The unstable cave ceiling collapses. 09948_ Dropped RU-N14's Throwing Claymores v3. 09949_ G-67 Veteran heat damages core (-19). 09949_ Myomer Leg fries itself beyond repair. 09963_ Slug penetrates Wall. 09964_ Y-72 Warden: "INTERCEPTING UNREGISTERED DERELICT." 09966_ Slug penetrates Wall. 10000_ Terminal disabled. 10053_ Imp. Targeting Computer destroyed. [Achievement: This Is Interesting...] [Achievement: Achiever] Map ----- +----------------------------------------------------+ | | | | | | | | | | | | | | | ?????????????????????????????????????????????????? | | ?????????????????????????????????????????????????? | | ?????????????????????????????????????????????????? | | ?????????????????????????????????????????????????? | | ?????????????????????????????????????????????????? | | ?????????????????????????????????????????????????? | | ?????????????????????????????????????????????????? | | ?????????????????????????????????????????????????? | | ?????????????????????????????????????????????????? | | ?????????????????????????????????????????????????? | | ?????????????????????????????????????????????????? | | ?????????????????????????????????????????????????? | | ?????????????????????????????????????????????????? | | ?????????????????????????????????????????????????? | | ?????????????????????????????????????????????????? | | ?????????????????????####????????????????????????? | | ????????????????????## ##???????????????????????? | | ????????????????##### ##??????????????????????? | | ????##??????????# s @#####????